Workbook

Sheet Ejem. Retiros y Cortes Exh (hidden)
T2: Código F GNGS- 06
C8: Bitacora de Efectivo
C9: "Retiro y Cortes Exhibición "
D11: Conjunto : | E11: Plaza Morelia | L11: Fecha : | M11: 2011-03-08
C14: Datos Vendedor | J14: Parciales (Depositos al cofre de valores) | N14: Total Parciales | P14: Total Parciales + Fondo | T14: Total General de Ingresos de Exhibición en Efectivo
C15: No. | D15: Nombre | E15: Turno | F15: Módulo | H15: Reintegro de Fondo de Caja | J15: 1 | K15: 2 | L15: 3 | M15: 4 | N15: Recibidos por Vendedor | P15: Recibidos por Vendedor | R15: Cheques
C17: 1 | D17: Rainier Tellitud | E17: 1 | F17: 1 | H17: 500 | J17: 4500 | K17: 5280 | L17: 0 | M17: 0 | N17: =SUM(J17:M17) -> 9780 | P17: =SUM(J17:M17)+H17 -> 10280
C18: 2 | D18: Oscar León | E18: 1 | F18: 2 | H18: 500 | J18: 5500 | K18: 3698 | L18: 0 | M18: 0 | N18: =SUM(J18:M18) -> 9198 | P18: =SUM(J18:M18)+H18 -> 9698
C19: 3 | D19: Cristina Pintor | E19: 1 | F19: 3 | H19: 500 | J19: 7700 | K19: 6523 | L19: 0 | M19: 0 | N19: 14223 | P19: 14723
C20: 4 | D20: Mario Peña | E20: 1 | F20: 4 | H20: 500 | J20: 5200 | K20: 1256 | L20: 0 | M20: 0 | N20: 6456 | P20: 6956
C21: 5 | D21: Hermelidia Santibañez | E21: 2 | F21: 1 | H21: 500 | J21: 0 | K21: 4200 | L21: 2698 | M21: 0 | N21: 6898 | P21: 7398
C22: 6 | D22: Iliana Medina | E22: 2 | F22: 2 | H22: 500 | J22: 0 | K22: 5400 | L22: 12691 | M22: 0 | N22: 18091 | P22: 18591
C23: 7 | D23: Hilda Vargas | E23: 2 | F23: 3 | H23: 500 | J23: 0 | K23: 6800 | L23: 9562 | M23: 0 | N23: 16362 | P23: 16862
C24: 8 | D24: Fernando Diaz | E24: 2 | F24: 4 | H24: 500 | J24: 0 | K24: 8900 | L24: 5874 | M24: 0 | N24: 14774 | P24: 15274
C25: 9 | H25: 0 | J25: 0 | K25: 0 | L25: 0 | M25: 0 | N25: 0 | P25: 0
C26: 10 | H26: 0 | J26: 0 | K26: 0 | L26: 0 | M26: 0 | N26: 0 | P26: 0
C27: 11 | H27: 0 | J27: 0 | K27: 0 | L27: 0 | M27: 0 | N27: 0 | P27: 0
C28: 12 | H28: 0 | J28: 0 | K28: 0 | L28: 0 | M28: 0 | N28: 0 | P28: 0
C29: 13 | H29: 0 | J29: 0 | K29: 0 | L29: 0 | M29: 0 | N29: 0 | P29: 0
C30: 14 | H30: 0 | J30: 0 | K30: 0 | L30: 0 | M30: 0 | N30: 0 | P30: 0
C31: 15 | H31: 0 | J31: 0 | K31: 0 | L31: 0 | M31: 0 | N31: 0 | P31: 0
C32: 16 | H32: 0 | J32: 0 | K32: 0 | L32: 0 | M32: 0 | N32: 0 | P32: 0
C33: 17 | H33: 0 | J33: 0 | K33: 0 | L33: 0 | M33: 0 | N33: 0 | P33: 0
C34: 18 | H34: 0 | J34: 0 | K34: 0 | L34: 0 | M34: 0 | N34: 0 | P34: 0
C35: 19 | H35: 0 | J35: 0 | K35: 0 | L35: 0 | M35: 0 | N35: 0 | P35: 0
C36: 20 | H36: 0 | J36: 0 | K36: 0 | L36: 0 | M36: 0 | N36: 0 | P36: 0
C38: Total Retiros y Cortes | H38: =SUM(H17:H36) -> 4000 | J38: =SUM(J17:J36) -> 22900 | K38: =SUM(K17:K36) -> 42057 | L38: =SUM(L17:L36) -> 30825 | M38: =SUM(M17:M36) -> 0 | N38: =SUM(N17:N36) -> 95782 | P38: =SUM(P17:P36) -> 99782
C40: Otros Ingresos Efectivo / Transferencias | J40: 3000 | K40: 0 | L40: 0 | M40: 0 | N40: =SUM(J40:M40) -> 3000
C42: Total Parciales | J42: =J38+J40 -> 25900 | K42: =K38+K40 -> 42057 | L42: =L38+L40 -> 30825 | M42: =M38+M40 -> 0 | N42: =N38+N40 -> 98782 | R42: 2000 | T42: =N42+R42 -> 100782 | U42: Total Exhibición

Sheet Ejem. Retiros y Cortes Dul (hidden)
T2: Código F GNGS- 06
C8: Bitacora de Efectivo
C9: "Retiro y Cortes Dulcería "
D11: Conjunto : | E11: Plaza Morelia | L11: Fecha : | M11: 2011-03-08
C14: Datos Vendedor | J14: Parciales (Depositos al cofre de valores) | N14: Total Parciales | P14: Total Parciales + Fondo | T14: Total General de Ingresos de Dulcería en Efectivo
C15: No. | D15: Nombre | E15: Turno | F15: Módulo | H15: Reintegro de Fondo de Caja | J15: 1 | K15: 2 | L15: 3 | M15: 4 | N15: Recibidos por Vendedor | P15: Recibidos por Vendedor | R15: Cheques
C17: 1 | D17: Ricardo Alvarez | E17: 1 | F17: 1 | H17: 500 | J17: 2400 | K17: 5690 | L17: 0 | M17: 0 | N17: =SUM(J17:M17) -> 8090 | P17: =SUM(J17:M17)+H17 -> 8590
C18: 2 | D18: Gabriela Loza | E18: 1 | F18: 2 | H18: 500 | J18: 2900 | K18: 3680 | L18: 0 | M18: 0 | N18: 6580 | P18: 7080
C19: 3 | D19: Esau Hernandez | E19: 1 | F19: 3 | H19: 500 | J19: 5600 | K19: 5561 | L19: 0 | M19: 0 | N19: 11161 | P19: 11661
C20: 4 | D20: Patricia Montero | E20: 1 | F20: 4 | H20: 500 | J20: 7800 | K20: 2236 | L20: 0 | M20: 0 | N20: 10036 | P20: 10536
C21: 5 | D21: Juan Luis Aburto | E21: 2 | F21: 1 | H21: 500 | J21: 0 | K21: 4500 | L21: 3984 | M21: 0 | N21: 8484 | P21: 8984
C22: 6 | D22: Carlos Magaña | E22: 2 | F22: 2 | H22: 500 | J22: 0 | K22: 5900 | L22: 2469 | M22: 0 | N22: 8369 | P22: 8869
C23: 7 | D23: Jorge Campos | E23: 2 | F23: 3 | H23: 500 | J23: 0 | K23: 6800 | L23: 4478 | M23: 0 | N23: 11278 | P23: 11778
C24: 8 | D24: Cecilia Ochoa | E24: 2 | F24: 4 | H24: 500 | J24: 0 | K24: 7800 | L24: 3523 | M24: 0 | N24: 11323 | P24: 11823
C25: 9 | H25: 0 | J25: 0 | K25: 0 | L25: 0 | M25: 0 | N25: 0 | P25: 0
C26: 10 | H26: 0 | J26: 0 | K26: 0 | L26: 0 | M26: 0 | N26: 0 | P26: 0
C27: 11 | H27: 0 | J27: 0 | K27: 0 | L27: 0 | M27: 0 | N27: 0 | P27: 0
C28: 12 | H28: 0 | J28: 0 | K28: 0 | L28: 0 | M28: 0 | N28: 0 | P28: 0
C29: 13 | H29: 0 | J29: 0 | K29: 0 | L29: 0 | M29: 0 | N29: 0 | P29: 0
C30: 14 | H30: 0 | J30: 0 | K30: 0 | L30: 0 | M30: 0 | N30: 0 | P30: 0
C31: 15 | H31: 0 | J31: 0 | K31: 0 | L31: 0 | M31: 0 | N31: 0 | P31: 0
C32: 16 | H32: 0 | J32: 0 | K32: 0 | L32: 0 | M32: 0 | N32: 0 | P32: 0
C33: 17 | H33: 0 | J33: 0 | K33: 0 | L33: 0 | M33: 0 | N33: 0 | P33: 0
C34: 18 | H34: 0 | J34: 0 | K34: 0 | L34: 0 | M34: 0 | N34: 0 | P34: 0
C35: 19 | H35: 0 | J35: 0 | K35: 0 | L35: 0 | M35: 0 | N35: 0 | P35: 0
C36: 20 | D36: Jorge Luis Mendoza | E36: 1 | F36: Spyral | H36: 500 | J36: 0 | K36: 3000 | L36: 542 | M36: 0 | N36: 3542 | P36: 4042
C38: Total Retiros y Cortes | H38: =SUM(H17:H36) -> 4500 | J38: =SUM(J17:J36) -> 18700 | K38: =SUM(K17:K36) -> 45167 | L38: =SUM(L17:L36) -> 14996 | M38: =SUM(M17:M36) -> 0 | N38: =SUM(N17:N35) -> 75321 | P38: =SUM(P17:P36) -> 83363
C40: Otros Ingresos Efectivo / Transferencia | J40: 4000 | K40: 0 | L40: 0 | M40: 0 | N40: =SUM(J40:M40) -> 4000
C42: Total Parciales | J42: =J38+J40 -> 22700 | K42: =K38+K40 -> 45167 | L42: =L38+L40 -> 14996 | M42: =M38+M40 -> 0 | N42: =N38+N40 -> 79321 | R42: 4500 | T42: =N42+R42 -> 83821 | U42: Total Dulcería
T44: =N36 -> 3542 | U44: Total Spyral

Sheet Ejem. Parciales. (hidden)
S2: Código F GNGS- 06
C7: Bitacora de Efectivo
C8: " Parciales "
C10: Conjunto : | D10: Cinépolis Morelia | M10: Fecha : | O10: ='Ejem. Retiros y Cortes Dul'!M11 -> 2011-03-08
C13: Denominaciones | I13: Parciales (Depositos al cofre de valores) | Q13: Cheques
I14: 1 | K14: 2 | M14: 3 | O14: 4 | S14: Total General
C16: Billetes
D18: 20 | I18: 300 | K18: 320 | M18: 60 | O18: 0
D19: 50 | I19: 4000 | K19: 2800 | M19: 150 | O19: 0
D20: 100 | I20: 5800 | K20: 4600 | M20: 5900 | O20: 0
D21: 200 | I21: 26000 | K21: 35000 | M21: 31000 | O21: 0
D22: 500 | I22: 0 | K22: 33500 | M22: 8700 | O22: 0
D23: 1000 | I23: 5000 | K23: 11000 | M23: 0 | O23: 0
C25: Monedas
D27: 0.5 | I27: 0 | K27: 0 | M27: 0 | O27: 0
D28: 1 | I28: 0 | K28: 0 | M28: 0 | O28: 0
D29: 2 | I29: 0 | K29: 4 | M29: 6 | O29: 0
D30: 5 | I30: 0 | K30: 0 | M30: 5 | O30: 0
D31: 10 | I31: 0 | K31: 0 | M31: 0 | O31: 0
D32: 20 | I32: 0 | K32: 0 | M32: 0 | O32: 0
D33: 50 | I33: 0 | K33: 0 | M33: 0 | O33: 0
D34: 100 | I34: 0 | K34: 0 | M34: 0 | O34: 0
C37: Importe depositado al cofre | I37: =SUM(I18:I34) -> 41100 | J37: =SUM(J18:J35) -> 0 | K37: =SUM(K18:K34) -> 87224 | L37: 0 | M37: =SUM(M18:M34) -> 45821 | N37: 0 | O37: =SUM(O18:O34) -> 0 | P37: 0 | Q37: 6500 | S37: =SUM(I37:Q37) -> 180645
C39: Menos : Reposición de Caja Chica / Transferencia | I39: 6500 | K39: 0 | M39: 0 | O39: 0 | S39: =SUM(I39:P39) -> 6500
C41: Menos : Reposición de Caja Chica Spyral | I41: 1000 | K41: 0 | M41: 0 | O41: 0 | S41: =SUM(I41:P41) -> 1000
C43: Total a depositar a cofre | I43: =I68-I41-I39 -> 41100 | J43: =J37-J41 -> 0 | K43: =K68-K41-K39 -> 87224 | L43: =L37-L41 -> 0 | M43: =M68-M41-M39 -> 45821 | N43: =N37-N41 -> 0 | O43: =O68-O41-O39 -> 0 | P43: =P37-P41 -> 0 | Q43: =Q37 -> 6500 | S43: =SUM(I43:Q43) -> 180645
M45: Total Ingresos Exhibición | S45: ='Ejem. Retiros y Cortes Exh'!T42 -> 100782
M46: Total a depositar de Dulcería | S46: ='Ejem. Retiros y Cortes Dul'!T42 -> 83821
Q47: Total Efectivo | S47: =S45+S46 -> 184603 | T47: Estos importes deben de coincidir con los reportes del Sistema.
Q49: Menos : Reposición de Caja Chica / Transferencias | S49: =S39 -> 6500
Q51: Total a depositar | S51: =S47-S49 -> 178103 | T51: Importe de la ficha
Q54: Total Ingresos Spyral | S54: ='Ejem. Retiros y Cortes Dul'!T44 -> 3542 | T54: Importe del Concentrado de Ingreso Diario
Q56: Menos: Reposición de Caja Chica Spyral | S56: =S41 -> 1000
Q58: Total a depositar | S58: =S54-S56 -> 2542 | T58: Importe de la ficha de Spyral
Q61: Diferencia | S61: =S37-S51-S58 -> 0
C65: Nombre y firma de quien deposita en cofre
C68: Total Parcial ( Retiros y Cortes Exh y Dul ) | I68: ='Ejem. Retiros y Cortes Exh'!J42+'Ejem. Retiros y Cortes Dul'!J42 -> 48600 | K68: ='Ejem. Retiros y Cortes Exh'!K42+'Ejem. Retiros y Cortes Dul'!K42 -> 87224 | M68: ='Ejem. Retiros y Cortes Exh'!L42+'Ejem. Retiros y Cortes Dul'!L42 -> 45821 | O68: ='Ejem. Retiros y Cortes Exh'!M42+'Ejem. Retiros y Cortes Dul'!M42 -> 0 | Q68: ='Ejem. Retiros y Cortes Exh'!R42+'Ejem. Retiros y Cortes Dul'!R42 -> 6500
C70: Direrencia | I70: =I43-I37 -> 0 | J70: =J43-J68 -> 0 | K70: =K43-K37 -> 0 | L70: =L43-L68 -> 0 | M70: =M43-M37 -> 0 | N70: =N43-N68 -> 0 | O70: =O43-O37 -> 0 | P70: =P43-P68 -> 0 | Q70: =Q43-Q37 -> 0
F77: Nombre y Firma de la persona que entrega los valores a la ERTV | O77: Nombre y Firma del Gerente de Conjunto

Sheet Formulario Llenado
C1: Formulario de Recuperación de Fondos y Retiros | AG1: Avellaneda | AI1: Drops | AJ1: Producto | AK1: Valor | AL1: Cantidad Lun-Jue | AM1: Total L-J | AN1: Cantidad Vie-Dom | AO1: Total V-D | AP1: Máximo Drop para el día
AG2: Houssay | AI2: Box/Parking | AJ2: Entrada General | AK2: 690 | AL2: 60 | AM2: =+AK2*AL2 -> 41400 | AN2: 90 | AO2: =+AK2*AN2 -> 62100 | AP2: =+MAX(AM2,AO2) -> 62100
AG3: Luján | AI3: Candy | AJ3: Combo Mío | AK3: 210 | AL3: 60 | AM3: =+AK3*AL3 -> 12600 | AN3: 90 | AO3: =+AK3*AN3 -> 18900 | AP3: =+MAX(AM3,AO3) -> 18900
AG4: Maipú | AI4: Máximo | AM4: =+MAX(AM2:AM3) -> 41400 | AO4: =+MAX(AO2:AO3) -> 62100 | AP4: =+MAX(AM4,AO4) -> 62100
AG5: Mendoza | AI5: 0.85 | AP5: =+AP4*0.85 -> 52785
AG6: Merlo | AI6: Billete menor denominación que admite Compusafe ($) | AP6: 10
F7: Complejo : | I7: Fecha : | K7: =IF(J7="","",CHOOSE(WEEKDAY(J7,2),"Lunes","Martes","Miércoles","Jueves","Viernes","Sábado","Domingo")) ->  | AG7: Neuquén
AG8: Pilar
C9: Datos Vendedor | E9: Float | G9: Barridos de Retiros (Drops)Depositados en Compusafe | AA9: Total Parciales en Efectivo | AG9: Recoleta
C10: Legajo | D10: Nombre | E10: N° | F10: Monto en $ Recuperado | G10: 1 | H10: 2 | I10: 3 | J10: 4 | K10: 5 | L10: 6 | M10: 7 | N10: 8 | O10: 9 | P10: 10 | Q10: 11 | R10: 12 | S10: 13 | T10: 14 | U10: 15 | V10: 16 | W10: 17 | X10: 18 | Y10: Drop Monedas/ Billetes Rechazados Apertura | Z10: Drop Monedas/ Billetes Rechazados Cierre | AA10: Recibidos por Vendedor | AB10: Recibidos Según Vista Cashdesk | AC10: Faltante | AD10: Sobrante | AE10: Observaciones | AG10: Rosario
D12: =IFERROR(IF(C12="","",VLOOKUP(C12,Cajeros!$B$4:$C$1425,2,FALSE))," ¡¡¡¡¡VERIFICAR LEGAJO!!!!!") ->  | AA12: =SUM(G12:Z12) -> 0 | AC12: =IF(AB12="","",IF(AB12>AA12,ROUND(AB12-AA12,2),"")) ->  | AD12: =IF(AB12="","",IF(AB12<AA12,ROUND(AA12-AB12,2),"")) -> 
D13: =IFERROR(IF(C13="","",VLOOKUP(C13,Cajeros!$B$4:$C$1425,2,FALSE))," ¡¡¡¡¡VERIFICAR LEGAJO!!!!!") ->  | AA13: =SUM(G13:Z13) -> 0 | AC13: =IF(AB13="","",IF(AB13>AA13,ROUND(AB13-AA13,2),"")) ->  | AD13: =IF(AB13="","",IF(AB13<AA13,ROUND(AA13-AB13,2),"")) -> 
D14: =IFERROR(IF(C14="","",VLOOKUP(C14,Cajeros!$B$4:$C$1425,2,FALSE))," ¡¡¡¡¡VERIFICAR LEGAJO!!!!!") ->  | AA14: 0
D15: =IFERROR(IF(C15="","",VLOOKUP(C15,Cajeros!$B$4:$C$1425,2,FALSE))," ¡¡¡¡¡VERIFICAR LEGAJO!!!!!") ->  | AA15: 0 | AC15: =IF(AB15="","",IF(AB15>AA15,ROUND(AB15-AA15,2),"")) ->  | AD15: =IF(AB15="","",IF(AB15<AA15,ROUND(AA15-AB15,2),"")) -> 
D16: =IFERROR(IF(C16="","",VLOOKUP(C16,Cajeros!$B$4:$C$1425,2,FALSE))," ¡¡¡¡¡VERIFICAR LEGAJO!!!!!") ->  | AA16: 0
D17: =IFERROR(IF(C17="","",VLOOKUP(C17,Cajeros!$B$4:$C$1425,2,FALSE))," ¡¡¡¡¡VERIFICAR LEGAJO!!!!!") ->  | AA17: 0
D18: =IFERROR(IF(C18="","",VLOOKUP(C18,Cajeros!$B$4:$C$1425,2,FALSE))," ¡¡¡¡¡VERIFICAR LEGAJO!!!!!") ->  | AA18: 0
D19: =IFERROR(IF(C19="","",VLOOKUP(C19,Cajeros!$B$4:$C$1425,2,FALSE))," ¡¡¡¡¡VERIFICAR LEGAJO!!!!!") ->  | AA19: 0
D20: =IFERROR(IF(C20="","",VLOOKUP(C20,Cajeros!$B$4:$C$1425,2,FALSE))," ¡¡¡¡¡VERIFICAR LEGAJO!!!!!") ->  | AA20: 0
D21: =IFERROR(IF(C21="","",VLOOKUP(C21,Cajeros!$B$4:$C$1425,2,FALSE))," ¡¡¡¡¡VERIFICAR LEGAJO!!!!!") ->  | AA21: 0
D22: =IFERROR(IF(C22="","",VLOOKUP(C22,Cajeros!$B$4:$C$1425,2,FALSE))," ¡¡¡¡¡VERIFICAR LEGAJO!!!!!") ->  | AA22: 0
D23: =IFERROR(IF(C23="","",VLOOKUP(C23,Cajeros!$B$4:$C$1425,2,FALSE))," ¡¡¡¡¡VERIFICAR LEGAJO!!!!!") ->  | AA23: 0
D24: =IFERROR(IF(C24="","",VLOOKUP(C24,Cajeros!$B$4:$C$1425,2,FALSE))," ¡¡¡¡¡VERIFICAR LEGAJO!!!!!") ->  | AA24: 0
D25: =IFERROR(IF(C25="","",VLOOKUP(C25,Cajeros!$B$4:$C$1425,2,FALSE))," ¡¡¡¡¡VERIFICAR LEGAJO!!!!!") ->  | AA25: 0
D26: =IFERROR(IF(C26="","",VLOOKUP(C26,Cajeros!$B$4:$C$1425,2,FALSE))," ¡¡¡¡¡VERIFICAR LEGAJO!!!!!") ->  | AA26: 0
D27: =IFERROR(IF(C27="","",VLOOKUP(C27,Cajeros!$B$4:$C$1425,2,FALSE))," ¡¡¡¡¡VERIFICAR LEGAJO!!!!!") ->  | AA27: 0
D28: =IFERROR(IF(C28="","",VLOOKUP(C28,Cajeros!$B$4:$C$1425,2,FALSE))," ¡¡¡¡¡VERIFICAR LEGAJO!!!!!") ->  | AA28: 0
D29: =IFERROR(IF(C29="","",VLOOKUP(C29,Cajeros!$B$4:$C$1425,2,FALSE))," ¡¡¡¡¡VERIFICAR LEGAJO!!!!!") ->  | AA29: 0
D30: =IFERROR(IF(C30="","",VLOOKUP(C30,Cajeros!$B$4:$C$1425,2,FALSE))," ¡¡¡¡¡VERIFICAR LEGAJO!!!!!") ->  | AA30: 0
D31: =IFERROR(IF(C31="","",VLOOKUP(C31,Cajeros!$B$4:$C$1425,2,FALSE))," ¡¡¡¡¡VERIFICAR LEGAJO!!!!!") ->  | AA31: 0
D32: =IFERROR(IF(C32="","",VLOOKUP(C32,Cajeros!$B$4:$C$1425,2,FALSE))," ¡¡¡¡¡VERIFICAR LEGAJO!!!!!") ->  | AA32: 0
D33: =IFERROR(IF(C33="","",VLOOKUP(C33,Cajeros!$B$4:$C$1425,2,FALSE))," ¡¡¡¡¡VERIFICAR LEGAJO!!!!!") ->  | AA33: 0
D34: =IFERROR(IF(C34="","",VLOOKUP(C34,Cajeros!$B$4:$C$1425,2,FALSE))," ¡¡¡¡¡VERIFICAR LEGAJO!!!!!") ->  | AA34: 0
D35: =IFERROR(IF(C35="","",VLOOKUP(C35,Cajeros!$B$4:$C$1425,2,FALSE))," ¡¡¡¡¡VERIFICAR LEGAJO!!!!!") ->  | AA35: 0
D36: =IFERROR(IF(C36="","",VLOOKUP(C36,Cajeros!$B$4:$C$1425,2,FALSE))," ¡¡¡¡¡VERIFICAR LEGAJO!!!!!") ->  | AA36: 0
D37: =IFERROR(IF(C37="","",VLOOKUP(C37,Cajeros!$B$4:$C$1425,2,FALSE))," ¡¡¡¡¡VERIFICAR LEGAJO!!!!!") ->  | AA37: 0
D38: =IFERROR(IF(C38="","",VLOOKUP(C38,Cajeros!$B$4:$C$1425,2,FALSE))," ¡¡¡¡¡VERIFICAR LEGAJO!!!!!") ->  | AA38: 0
D39: =IFERROR(IF(C39="","",VLOOKUP(C39,Cajeros!$B$4:$C$1425,2,FALSE))," ¡¡¡¡¡VERIFICAR LEGAJO!!!!!") ->  | AA39: 0
D40: =IFERROR(IF(C40="","",VLOOKUP(C40,Cajeros!$B$4:$C$1425,2,FALSE))," ¡¡¡¡¡VERIFICAR LEGAJO!!!!!") ->  | AA40: 0
D41: =IFERROR(IF(C41="","",VLOOKUP(C41,Cajeros!$B$4:$C$1425,2,FALSE))," ¡¡¡¡¡VERIFICAR LEGAJO!!!!!") ->  | AA41: 0
D42: =IFERROR(IF(C42="","",VLOOKUP(C42,Cajeros!$B$4:$C$1425,2,FALSE))," ¡¡¡¡¡VERIFICAR LEGAJO!!!!!") ->  | AA42: 0
D43: =IFERROR(IF(C43="","",VLOOKUP(C43,Cajeros!$B$4:$C$1425,2,FALSE))," ¡¡¡¡¡VERIFICAR LEGAJO!!!!!") ->  | AA43: 0
D44: =IFERROR(IF(C44="","",VLOOKUP(C44,Cajeros!$B$4:$C$1425,2,FALSE))," ¡¡¡¡¡VERIFICAR LEGAJO!!!!!") ->  | AA44: 0
D45: =IFERROR(IF(C45="","",VLOOKUP(C45,Cajeros!$B$4:$C$1425,2,FALSE))," ¡¡¡¡¡VERIFICAR LEGAJO!!!!!") ->  | AA45: 0
D46: =IFERROR(IF(C46="","",VLOOKUP(C46,Cajeros!$B$4:$C$1425,2,FALSE))," ¡¡¡¡¡VERIFICAR LEGAJO!!!!!") ->  | AA46: 0
D47: =IFERROR(IF(C47="","",VLOOKUP(C47,Cajeros!$B$4:$C$1425,2,FALSE))," ¡¡¡¡¡VERIFICAR LEGAJO!!!!!") ->  | AA47: 0
D48: =IFERROR(IF(C48="","",VLOOKUP(C48,Cajeros!$B$4:$C$1425,2,FALSE))," ¡¡¡¡¡VERIFICAR LEGAJO!!!!!") ->  | AA48: 0
D49: =IFERROR(IF(C49="","",VLOOKUP(C49,Cajeros!$B$4:$C$1425,2,FALSE))," ¡¡¡¡¡VERIFICAR LEGAJO!!!!!") ->  | AA49: 0
D50: =IFERROR(IF(C50="","",VLOOKUP(C50,Cajeros!$B$4:$C$1425,2,FALSE))," ¡¡¡¡¡VERIFICAR LEGAJO!!!!!") ->  | AA50: 0
D51: =IFERROR(IF(C51="","",VLOOKUP(C51,Cajeros!$B$4:$C$1425,2,FALSE))," ¡¡¡¡¡VERIFICAR LEGAJO!!!!!") ->  | AA51: 0
D52: =IFERROR(IF(C52="","",VLOOKUP(C52,Cajeros!$B$4:$C$1425,2,FALSE))," ¡¡¡¡¡VERIFICAR LEGAJO!!!!!") ->  | AA52: 0
D53: =IFERROR(IF(C53="","",VLOOKUP(C53,Cajeros!$B$4:$C$1425,2,FALSE))," ¡¡¡¡¡VERIFICAR LEGAJO!!!!!") ->  | AA53: 0
D54: =IFERROR(IF(C54="","",VLOOKUP(C54,Cajeros!$B$4:$C$1425,2,FALSE))," ¡¡¡¡¡VERIFICAR LEGAJO!!!!!") ->  | AA54: 0
D55: =IFERROR(IF(C55="","",VLOOKUP(C55,Cajeros!$B$4:$C$1425,2,FALSE))," ¡¡¡¡¡VERIFICAR LEGAJO!!!!!") ->  | AA55: 0
D56: =IFERROR(IF(C56="","",VLOOKUP(C56,Cajeros!$B$4:$C$1425,2,FALSE))," ¡¡¡¡¡VERIFICAR LEGAJO!!!!!") ->  | AA56: 0
D57: =IFERROR(IF(C57="","",VLOOKUP(C57,Cajeros!$B$4:$C$1425,2,FALSE))," ¡¡¡¡¡VERIFICAR LEGAJO!!!!!") ->  | AA57: 0
D58: =IFERROR(IF(C58="","",VLOOKUP(C58,Cajeros!$B$4:$C$1425,2,FALSE))," ¡¡¡¡¡VERIFICAR LEGAJO!!!!!") ->  | AA58: 0
D59: =IFERROR(IF(C59="","",VLOOKUP(C59,Cajeros!$B$4:$C$1425,2,FALSE))," ¡¡¡¡¡VERIFICAR LEGAJO!!!!!") ->  | AA59: 0
D60: =IFERROR(IF(C60="","",VLOOKUP(C60,Cajeros!$B$4:$C$1425,2,FALSE))," ¡¡¡¡¡VERIFICAR LEGAJO!!!!!") ->  | AA60: 0
D61: =IFERROR(IF(C61="","",VLOOKUP(C61,Cajeros!$B$4:$C$1425,2,FALSE))," ¡¡¡¡¡VERIFICAR LEGAJO!!!!!") ->  | AA61: 0
AC62: =TRUNC(SUM($AC$12:$AC$61),2) -> 0 | AD62: =TRUNC(SUM($AD$12:$AD$61),2) -> 0
C63: Monto Total Retiros de puntos de venta (Drops) Depositados en Compusafe | G63: =SUM(G12:G61) -> 0 | H63: =SUM(H12:H61) -> 0 | I63: 0 | J63: 0 | K63: 0 | L63: 0 | M63: 0 | N63: 0 | O63: 0 | P63: 0 | Q63: 0 | R63: 0 | S63: 0 | T63: 0 | U63: 0 | V63: 0 | W63: 0 | X63: 0 | Y63: 0 | Z63: 0 | AA63: =SUM(AA12:AA61) -> 0 | AB63: =SUM(AB12:AB61) -> 0
Y64: En Compusafe ↓ | AC64: En Compusafe↓
C65: Menos: Retiros de recaudación
C67: En Bolsin | Y67: =+$Y$63-$Y$65 -> 0 | AC67: =+$AC$63+$Z$63-$AC$65 -> 0
X68: N° Bolsín → | AB68: N° Bolsín →
C69: Retirado por | F69: Nombre | G69: =IFERROR(IF(G70="","",VLOOKUP(G70,Cajeros!$B$4:$C$1425,2,FALSE)),"VERIFICAR LEGAJO") ->  | H69: =IFERROR(IF(H70="","",VLOOKUP(H70,Cajeros!$B$4:$C$1425,2,FALSE)),"VERIFICAR LEGAJO") ->  | I69: =IFERROR(IF(I70="","",VLOOKUP(I70,Cajeros!$B$4:$C$1425,2,FALSE)),"VERIFICAR LEGAJO") ->  | J69: =IFERROR(IF(J70="","",VLOOKUP(J70,Cajeros!$B$4:$C$1425,2,FALSE)),"VERIFICAR LEGAJO") ->  | K69: =IFERROR(IF(K70="","",VLOOKUP(K70,Cajeros!$B$4:$C$1425,2,FALSE)),"VERIFICAR LEGAJO") ->  | L69: =IFERROR(IF(L70="","",VLOOKUP(L70,Cajeros!$B$4:$C$1425,2,FALSE)),"VERIFICAR LEGAJO") ->  | M69: =IFERROR(IF(M70="","",VLOOKUP(M70,Cajeros!$B$4:$C$1425,2,FALSE)),"VERIFICAR LEGAJO") ->  | N69: =IFERROR(IF(N70="","",VLOOKUP(N70,Cajeros!$B$4:$C$1425,2,FALSE)),"VERIFICAR LEGAJO") ->  | O69: =IFERROR(IF(O70="","",VLOOKUP(O70,Cajeros!$B$4:$C$1425,2,FALSE)),"VERIFICAR LEGAJO") ->  | P69: =IFERROR(IF(P70="","",VLOOKUP(P70,Cajeros!$B$4:$C$1425,2,FALSE)),"VERIFICAR LEGAJO") ->  | Q69: =IFERROR(IF(Q70="","",VLOOKUP(Q70,Cajeros!$B$4:$C$1425,2,FALSE)),"VERIFICAR LEGAJO") ->  | R69: =IFERROR(IF(R70="","",VLOOKUP(R70,Cajeros!$B$4:$C$1425,2,FALSE)),"VERIFICAR LEGAJO") ->  | S69: =IFERROR(IF(S70="","",VLOOKUP(S70,Cajeros!$B$4:$C$1425,2,FALSE)),"VERIFICAR LEGAJO") ->  | T69: =IFERROR(IF(T70="","",VLOOKUP(T70,Cajeros!$B$4:$C$1425,2,FALSE)),"VERIFICAR LEGAJO") ->  | U69: =IFERROR(IF(U70="","",VLOOKUP(U70,Cajeros!$B$4:$C$1425,2,FALSE)),"VERIFICAR LEGAJO") ->  | V69: =IFERROR(IF(V70="","",VLOOKUP(V70,Cajeros!$B$4:$C$1425,2,FALSE)),"VERIFICAR LEGAJO") ->  | W69: =IFERROR(IF(W70="","",VLOOKUP(W70,Cajeros!$B$4:$C$1425,2,FALSE)),"VERIFICAR LEGAJO") ->  | X69: =IFERROR(IF(X70="","",VLOOKUP(X70,Cajeros!$B$4:$C$1425,2,FALSE)),"VERIFICAR LEGAJO") ->  | Y69: =IFERROR(IF(Y70="","",VLOOKUP(Y70,Cajeros!$B$4:$C$1425,2,FALSE)),"VERIFICAR LEGAJO") ->  | Z69: =IFERROR(IF(Z70="","",VLOOKUP(Z70,Cajeros!$B$4:$C$1425,2,FALSE)),"VERIFICAR LEGAJO") ->  | AC69: =IFERROR(IF(AC70="","",VLOOKUP(AC70,Cajeros!$B$4:$C$1425,2,FALSE)),"VERIFICAR LEGAJO") ->  | AD69: =IFERROR(IF(AD70="","",VLOOKUP(AD70,Cajeros!$B$4:$C$1425,2,FALSE)),"VERIFICAR LEGAJO") -> 
F70: Legajo

Sheet Reporte Depósitos
C1: Formulario de Depósitos en Compusafe
D7: Complejo: | E7: =IF('Formulario Llenado'!G7="","",'Formulario Llenado'!G7) ->  | L7: Fecha : | N7: =+IF('Formulario Llenado'!J7="","",'Formulario Llenado'!J7) ->  | P7: ='Formulario Llenado'!$K$7 -> 
H10: Barridos de Retiros (Drops) Depositados en Compusafe | AV10: Drop Final Cierre + Faltantes | AX10: Sobrantes | AZ10: Total General
H11: 1 | J11: 2 | L11: 3 | N11: 4 | P11: 5 | R11: 6 | T11: 7 | V11: 8 | X11: 9 | Z11: 10 | AB11: 11 | AD11: 12 | AF11: 13 | AH11: 14 | AJ11: 15 | AL11: 16 | AN11: 17 | AP11: 18 | AR11: Drop Final Apertura
C12: Retiros de recaudación ($) | H12: =+IF('Formulario Llenado'!G65="",0,'Formulario Llenado'!G65) -> 0 | J12: =+IF('Formulario Llenado'!H65="",0,'Formulario Llenado'!H65) -> 0 | L12: =+IF('Formulario Llenado'!I65="",0,'Formulario Llenado'!I65) -> 0 | N12: =+IF('Formulario Llenado'!J65="",0,'Formulario Llenado'!J65) -> 0 | P12: =+IF('Formulario Llenado'!K65="",0,'Formulario Llenado'!K65) -> 0 | R12: =+IF('Formulario Llenado'!L65="",0,'Formulario Llenado'!L65) -> 0 | T12: =+IF('Formulario Llenado'!M65="",0,'Formulario Llenado'!M65) -> 0 | V12: =+IF('Formulario Llenado'!N65="",0,'Formulario Llenado'!N65) -> 0 | X12: =+IF('Formulario Llenado'!O65="",0,'Formulario Llenado'!O65) -> 0 | Z12: =+IF('Formulario Llenado'!P65="",0,'Formulario Llenado'!P65) -> 0 | AB12: =+IF('Formulario Llenado'!Q65="",0,'Formulario Llenado'!Q65) -> 0 | AD12: =+IF('Formulario Llenado'!R65="",0,'Formulario Llenado'!R65) -> 0 | AF12: =+IF('Formulario Llenado'!S65="",0,'Formulario Llenado'!S65) -> 0 | AH12: =+IF('Formulario Llenado'!T65="",0,'Formulario Llenado'!T65) -> 0 | AJ12: =+IF('Formulario Llenado'!U65="",0,'Formulario Llenado'!U65) -> 0 | AL12: =+IF('Formulario Llenado'!V65="",0,'Formulario Llenado'!V65) -> 0 | AN12: =+IF('Formulario Llenado'!W65="",0,'Formulario Llenado'!W65) -> 0 | AP12: =+IF('Formulario Llenado'!X65="",0,'Formulario Llenado'!X65) -> 0 | AZ12: =SUM(H12:AP12) -> 0
C14: Importe real depositado al Compusafe ($) | H14: =+IF('Formulario Llenado'!G63="",0,'Formulario Llenado'!G63-'Formulario Llenado'!G65) -> 0 | J14: =+IF('Formulario Llenado'!H63="",0,'Formulario Llenado'!H63-'Formulario Llenado'!H65) -> 0 | L14: =+IF('Formulario Llenado'!I63="",0,'Formulario Llenado'!I63-'Formulario Llenado'!I65) -> 0 | N14: =+IF('Formulario Llenado'!J63="",0,'Formulario Llenado'!J63-'Formulario Llenado'!J65) -> 0 | P14: =+IF('Formulario Llenado'!K63="",0,'Formulario Llenado'!K63-'Formulario Llenado'!K65) -> 0 | R14: =+IF('Formulario Llenado'!L63="",0,'Formulario Llenado'!L63-'Formulario Llenado'!L65) -> 0 | T14: =+IF('Formulario Llenado'!M63="",0,'Formulario Llenado'!M63-'Formulario Llenado'!M65) -> 0 | V14: =+IF('Formulario Llenado'!N63="",0,'Formulario Llenado'!N63-'Formulario Llenado'!N65) -> 0 | X14: =+IF('Formulario Llenado'!O63="",0,'Formulario Llenado'!O63-'Formulario Llenado'!O65) -> 0 | Z14: =+IF('Formulario Llenado'!P63="",0,'Formulario Llenado'!P63-'Formulario Llenado'!P65) -> 0 | AB14: =+IF('Formulario Llenado'!Q63="",0,'Formulario Llenado'!Q63-'Formulario Llenado'!Q65) -> 0 | AD14: =+IF('Formulario Llenado'!R63="",0,'Formulario Llenado'!R63-'Formulario Llenado'!R65) -> 0 | AF14: =+IF('Formulario Llenado'!S63="",0,'Formulario Llenado'!S63-'Formulario Llenado'!S65) -> 0 | AH14: =+IF('Formulario Llenado'!T63="",0,'Formulario Llenado'!T63-'Formulario Llenado'!T65) -> 0 | AJ14: =+IF('Formulario Llenado'!U63="",0,'Formulario Llenado'!U63-'Formulario Llenado'!U65) -> 0 | AL14: =+IF('Formulario Llenado'!V63="",0,'Formulario Llenado'!V63-'Formulario Llenado'!V65) -> 0 | AN14: =+IF('Formulario Llenado'!W63="",0,'Formulario Llenado'!W63-'Formulario Llenado'!W65) -> 0 | AP14: =+IF('Formulario Llenado'!X63="",0,'Formulario Llenado'!X63-'Formulario Llenado'!X65) -> 0 | AR14: =+IF('Formulario Llenado'!Y65="","",'Formulario Llenado'!Y65) ->  | AV14: =+IF('Formulario Llenado'!AC65="","",'Formulario Llenado'!AC65) ->  | AX14: =+IF('Formulario Llenado'!AD63="",0,'Formulario Llenado'!AD63) -> 0 | AZ14: =SUM(H14:AV14) -> 0
C16: Bolsines al Cierre (drops monedas/billetes rechazados, faltantes) | H16: =+IF('Formulario Llenado'!G67="","",'Formulario Llenado'!G67) ->  | J16: =+IF('Formulario Llenado'!H67="","",'Formulario Llenado'!H67) ->  | L16: =+IF('Formulario Llenado'!I67="","",'Formulario Llenado'!I67) ->  | N16: =+IF('Formulario Llenado'!J67="","",'Formulario Llenado'!J67) ->  | P16: =+IF('Formulario Llenado'!K67="","",'Formulario Llenado'!K67) ->  | R16: =+IF('Formulario Llenado'!L67="","",'Formulario Llenado'!L67) ->  | T16: =+IF('Formulario Llenado'!M67="","",'Formulario Llenado'!M67) ->  | V16: =+IF('Formulario Llenado'!N67="","",'Formulario Llenado'!N67) ->  | X16: =+IF('Formulario Llenado'!O67="","",'Formulario Llenado'!O67) ->  | Z16: =+IF('Formulario Llenado'!P67="","",'Formulario Llenado'!P67) ->  | AB16: =+IF('Formulario Llenado'!Q67="","",'Formulario Llenado'!Q67) ->  | AD16: =+IF('Formulario Llenado'!R67="","",'Formulario Llenado'!R67) ->  | AF16: =+IF('Formulario Llenado'!S67="","",'Formulario Llenado'!S67) ->  | AH16: =+IF('Formulario Llenado'!T67="","",'Formulario Llenado'!T67) ->  | AJ16: =+IF('Formulario Llenado'!U67="","",'Formulario Llenado'!U67) ->  | AL16: =+IF('Formulario Llenado'!V67="","",'Formulario Llenado'!V67) ->  | AN16: =+IF('Formulario Llenado'!W67="","",'Formulario Llenado'!W67) ->  | AP16: =+IF('Formulario Llenado'!X67="","",'Formulario Llenado'!X67) ->  | AR16: =+IF('Formulario Llenado'!Y67="","",'Formulario Llenado'!Y67) -> 0 | AV16: =+IF('Formulario Llenado'!AC67="","",'Formulario Llenado'!AC67) -> 0 | AZ16: =SUM(AR16:AV16) -> 0
C18: N° Bolsín | AR18: =+IF('Formulario Llenado'!Y68="","",'Formulario Llenado'!Y68) ->  | AV18: =+IF('Formulario Llenado'!AC68="","",'Formulario Llenado'!AC68) -> 
C20: Datos de Depositante en Caja de Empresa Trasportadora de Caudales
F21: Nombre | H21: =IFERROR(IF(H22="","",VLOOKUP(H22,Cajeros!$B$4:$C$1425,2,FALSE)),"VERIFICAR LEGAJO") ->  | J21: =IFERROR(IF(J22="","",VLOOKUP(J22,Cajeros!$B$4:$C$1425,2,FALSE)),"VERIFICAR LEGAJO") ->  | L21: =IFERROR(IF(L22="","",VLOOKUP(L22,Cajeros!$B$4:$C$1425,2,FALSE)),"VERIFICAR LEGAJO") ->  | N21: =IFERROR(IF(N22="","",VLOOKUP(N22,Cajeros!$B$4:$C$1425,2,FALSE)),"VERIFICAR LEGAJO") ->  | P21: =IFERROR(IF(P22="","",VLOOKUP(P22,Cajeros!$B$4:$C$1425,2,FALSE)),"VERIFICAR LEGAJO") ->  | R21: =IFERROR(IF(R22="","",VLOOKUP(R22,Cajeros!$B$4:$C$1425,2,FALSE)),"VERIFICAR LEGAJO") ->  | T21: =IFERROR(IF(T22="","",VLOOKUP(T22,Cajeros!$B$4:$C$1425,2,FALSE)),"VERIFICAR LEGAJO") ->  | V21: =IFERROR(IF(V22="","",VLOOKUP(V22,Cajeros!$B$4:$C$1425,2,FALSE)),"VERIFICAR LEGAJO") ->  | X21: =IFERROR(IF(X22="","",VLOOKUP(X22,Cajeros!$B$4:$C$1425,2,FALSE)),"VERIFICAR LEGAJO") ->  | Z21: =IFERROR(IF(Z22="","",VLOOKUP(Z22,Cajeros!$B$4:$C$1425,2,FALSE)),"VERIFICAR LEGAJO") ->  | AB21: =IFERROR(IF(AB22="","",VLOOKUP(AB22,Cajeros!$B$4:$C$1425,2,FALSE)),"VERIFICAR LEGAJO") ->  | AD21: =IFERROR(IF(AD22="","",VLOOKUP(AD22,Cajeros!$B$4:$C$1425,2,FALSE)),"VERIFICAR LEGAJO") ->  | AF21: =IFERROR(IF(AF22="","",VLOOKUP(AF22,Cajeros!$B$4:$C$1425,2,FALSE)),"VERIFICAR LEGAJO") ->  | AH21: =IFERROR(IF(AH22="","",VLOOKUP(AH22,Cajeros!$B$4:$C$1425,2,FALSE)),"VERIFICAR LEGAJO") ->  | AJ21: =IFERROR(IF(AJ22="","",VLOOKUP(AJ22,Cajeros!$B$4:$C$1425,2,FALSE)),"VERIFICAR LEGAJO") ->  | AL21: =IFERROR(IF(AL22="","",VLOOKUP(AL22,Cajeros!$B$4:$C$1425,2,FALSE)),"VERIFICAR LEGAJO") ->  | AN21: =IFERROR(IF(AN22="","",VLOOKUP(AN22,Cajeros!$B$4:$C$1425,2,FALSE)),"VERIFICAR LEGAJO") ->  | AP21: =IFERROR(IF(AP22="","",VLOOKUP(AP22,Cajeros!$B$4:$C$1425,2,FALSE)),"VERIFICAR LEGAJO") ->  | AR21: =IFERROR(IF(AR22="","",VLOOKUP(AR22,Cajeros!$B$4:$C$1425,2,FALSE)),"VERIFICAR LEGAJO") ->  | AV21: =IFERROR(IF(AV22="","",VLOOKUP(AV22,Cajeros!$B$4:$C$1425,2,FALSE)),"VERIFICAR LEGAJO") ->  | AX21: =IFERROR(IF(AX22="","",VLOOKUP(AX22,Cajeros!$B$4:$C$1425,2,FALSE)),"VERIFICAR LEGAJO") -> 
F22: Legajo | H22: =+IF('Formulario Llenado'!G70="","",'Formulario Llenado'!G70) ->  | J22: =+IF('Formulario Llenado'!H70="","",'Formulario Llenado'!H70) ->  | L22: =+IF('Formulario Llenado'!I70="","",'Formulario Llenado'!I70) ->  | N22: =+IF('Formulario Llenado'!J70="","",'Formulario Llenado'!J70) ->  | P22: =+IF('Formulario Llenado'!K70="","",'Formulario Llenado'!K70) ->  | R22: =+IF('Formulario Llenado'!L70="","",'Formulario Llenado'!L70) ->  | T22: =+IF('Formulario Llenado'!M70="","",'Formulario Llenado'!M70) ->  | V22: =+IF('Formulario Llenado'!N70="","",'Formulario Llenado'!N70) ->  | X22: =+IF('Formulario Llenado'!O70="","",'Formulario Llenado'!O70) ->  | Z22: =+IF('Formulario Llenado'!P70="","",'Formulario Llenado'!P70) ->  | AB22: =+IF('Formulario Llenado'!Q70="","",'Formulario Llenado'!Q70) ->  | AD22: =+IF('Formulario Llenado'!R70="","",'Formulario Llenado'!R70) ->  | AF22: =+IF('Formulario Llenado'!S70="","",'Formulario Llenado'!S70) ->  | AH22: =+IF('Formulario Llenado'!T70="","",'Formulario Llenado'!T70) ->  | AJ22: =+IF('Formulario Llenado'!U70="","",'Formulario Llenado'!U70) ->  | AL22: =+IF('Formulario Llenado'!V70="","",'Formulario Llenado'!V70) ->  | AN22: =+IF('Formulario Llenado'!W70="","",'Formulario Llenado'!W70) ->  | AP22: =+IF('Formulario Llenado'!X70="","",'Formulario Llenado'!X70) ->  | AR22: =+IF('Formulario Llenado'!Y70="","",'Formulario Llenado'!Y70) ->  | AV22: =+IF('Formulario Llenado'!AC70="","",'Formulario Llenado'!AC70) ->  | AX22: =+IF('Formulario Llenado'!AD70="","",'Formulario Llenado'!AD70) -> 
R24: Entregas parciales: Campos para ser llenados de forma digital sólo si existen entregas a la empresa transportadora de caudales y ya se ha depositado recaudación del día en curso
D25: Total Efectivo Recaudado ($) | H25: =+AZ12+AZ14+AZ16 -> 0 | L25: Total a depositar Cine ($) | N25: =H25-H27 -> 0 | X25: =IFERROR(IF(V25="","",VLOOKUP(V25,Cajeros!$B$7:$C$1425,2,FALSE)),"VERIFICAR LEGAJO") -> 
D27: Retiros de Recaudación ($) | H27: =AZ12 -> 0 | L27: Total Bolsines del día ($) | N27: =+COUNTA('Formulario Llenado'!Y68,'Formulario Llenado'!AC68) -> 0 | R27: N° Bolsines Parciales Entregados | T27: Monto Parcial Entregado $ | V27: Legajo | X27: Nombre | AX27: Fecha de entrega | AZ27: Hora de entrega
D29: Monto Depositado en Compusafe ($) | H29: =AZ14 -> 0 | L29: Monto Depositado en Bolsines | N29: =AZ16 -> 0
D30: Gerente del Complejo | J30: =IFERROR(IF(H30="","",VLOOKUP(H30,Cajeros!$B$7:$C$1425,2,FALSE)),"VERIFICAR LEGAJO") -> 
H32: Legajo | J32: Nombre
C34: Observaciones:

Sheet Cajeros
A3: Usuario | B3: Legajo | C3: Nombre
A4: 40 | B4: 40 | C4: Luciano Barchetti
A5: 182 | B5: 182 | C5: Claudia Nunez
A6: 350 | B6: 350 | C6: Diego Daniel Gargarella
A7: 373 | B7: 373 | C7: Roman Osvaldo Degrati
A8: 425 | B8: 425 | C8: Nelson Feugeas
A9: 427 | B9: 427 | C9: Alberto Jesus Ferreyra
A10: 567 | B10: 567 | C10: Juan Fabricio Davyt
A11: 578 | B11: 578 | C11: Gustavo Francisco Orejas
A12: 637 | B12: 637 | C12: Rita Natalia Lopez
A13: 643 | B13: 643 | C13: Marcos Javier Medrano
A14: 1089 | B14: 1089 | C14: Gonzalo Benito
A15: 1216 | B15: 1216 | C15: Diego Javier Solis
A16: 1337 | B16: 1337 | C16: Jorge Martin Prieto
A17: 1451 | B17: 1451 | C17: Maria Monica Gomez
A18: 1468 | B18: 1468 | C18: Florencia Gabriela Mari
A19: 1917 | B19: 1917 | C19: Leonardo Daniel Ciarlitto
A20: 2047 | B20: 2047 | C20: German Alberto Calcagno
A21: 2539 | B21: 2539 | C21: Pablo Nicolas Kordasz
A22: 2663 | B22: 2663 | C22: Lucas Alberto Valenti
A23: 3189 | B23: 3189 | C23: Juan Manuel Suarez
A24: 3685 | B24: 3685 | C24: Romina Elisabeth Galvan
A25: 3735 | B25: 3735 | C25: Sol Javier Colom
A26: 3781 | B26: 3781 | C26: Adriana Beatriz Luque
A27: 3883 | B27: 3883 | C27: Miriam Elisabeth Centurion
A28: 3944 | B28: 3944 | C28: Blanca Delicia Ibarrola
A29: 3970 | B29: 3970 | C29: Maria Eugenia Guntin
A30: 4153 | B30: 4153 | C30: Maria Jose Gazcon
A31: 4218 | B31: 4218 | C31: Maria Fernanda Fissolo Iuvone
A32: 4268 | B32: 4268 | C32: Diego Mariano Conde
A33: 4376 | B33: 4376 | C33: Valeria del Carmen Aguirre
A34: 4510 | B34: 4510 | C34: Ignacio Hernan Rodriguez
A35: 4906 | B35: 4906 | C35: Alberto Fernandez Correa
A36: 4972 | B36: 4972 | C36: Matias Ivandic
A37: 5052 | B37: 5052 | C37: Daniel Eduardo Munoz
A38: 5055 | B38: 5055 | C38: Erika Joanna Romero
A39: 5119 | B39: 5119 | C39: Cristian Rodrigo Diaz
A40: 5219 | B40: 5219 | C40: Yeni Tamara Quilodran
A41: 5240 | B41: 5240 | C41: Pamela Deborah Ovejero
A42: 5243 | B42: 5243 | C42: Abel Nicolas Collantes
A43: 5277 | B43: 5277 | C43: Fernando Riba
A44: 5302 | B44: 5302 | C44: Lorna Natalin Lois
A45: 5379 | B45: 5379 | C45: Omar Enrique Farias
A46: 5432 | B46: 5432 | C46: Martin Andres Accastello
A47: 5574 | B47: 5574 | C47: Jorge Marcelo Valdes
A48: 5577 | B48: 5577 | C48: Mariano Javier Abarca
A49: 5765 | B49: 5765 | C49: Roberto Walter Ponce
A50: 5840 | B50: 5840 | C50: Vanina Soledad Zarini
A51: 5847 | B51: 5847 | C51: Federico Nahuel Lescano
A52: 5866 | B52: 5866 | C52: Maria Cristina Arrieta
A53: 5935 | B53: 5935 | C53: Sandra Valeria Aparicio
A54: 5993 | B54: 5993 | C54: Martin Oscar Ramirez
A55: 6176 | B55: 6176 | C55: Andres Sebastian Ortiz
A56: 6263 | B56: 6263 | C56: German Javier Diaz
A57: 6333 | B57: 6333 | C57: Azucena del Carmen Melgarejo
A58: 6487 | B58: 6487 | C58: Carolina Daiana Kolak
A59: 6493 | B59: 6493 | C59: Catherin Romina Peredo
A60: 6542 | B60: 6542 | C60: Gonzalo Javier Calizaya
A61: 6543 | B61: 6543 | C61: Flavia Agustina Rodriguez
A62: 6553 | B62: 6553 | C62: Laura Daiana Aguiar Figueira
A63: 6573 | B63: 6573 | C63: Cristian Daniel Contardi
A64: 6601 | B64: 6601 | C64: Mayra Anabel Vazquez
A65: 6614 | B65: 6614 | C65: Lucas Martinez
A66: 6755 | B66: 6755 | C66: Julio Damian Insaurralde
A67: 6851 | B67: 6851 | C67: Natalia Lucia Arrieta
A68: 6852 | B68: 6852 | C68: Roxana Alejandra Paola Biondi
A69: 6885 | B69: 6885 | C69: Laura Giselle Enriquez
A70: 6922 | B70: 6922 | C70: Keissy Cecilia Villalba Ovelar
A71: 6945 | B71: 6945 | C71: Josue Simon Kloss
A72: 6947 | B72: 6947 | C72: Diego Wishikuma
A73: 6973 | B73: 6973 | C73: Cintia Judith Vara
A74: 7043 | B74: 7043 | C74: Andrea Soledad Cabrera
A75: 7065 | B75: 7065 | C75: Nicolas Ezequiel Torres
A76: 7100 | B76: 7100 | C76: Emeterio Paredes
A77: 7184 | B77: 7184 | C77: Gonzalo Damian Llanos
A78: 7395 | B78: 7395 | C78: Nicolas Alberto De Zan
A79: 7402 | B79: 7402 | C79: Jeronimo Javier Emilio Cordoba
A80: 7424 | B80: 7424 | C80: Luciano Gabriel Fernandez
A81: 7451 | B81: 7451 | C81: Gaston Ezequiel Godoy Fernandez
A82: 7460 | B82: 7460 | C82: Brandon Nicolas Cleque Sanchez
A83: 7490 | B83: 7490 | C83: Lisette Cartier
A84: 7496 | B84: 7496 | C84: Elizabeth Rossmery Nunez Ureta
A85: 7499 | B85: 7499 | C85: Juan Manuel Fuentes
A86: 7513 | B86: 7513 | C86: Johana Amanda Elizondo
A87: 7571 | B87: 7571 | C87: Carolina Flavia Boucounoski
A88: 7821 | B88: 7821 | C88: Carlos Martin Barreiro
A89: 7834 | B89: 7834 | C89: Fabiana Marcela del Rosario Acre
A90: 7872 | B90: 7872 | C90: Nahuel Alejandro Mino
A91: 7875 | B91: 7875 | C91: Marian Nahir Sauma Paez
A92: 7919 | B92: 7919 | C92: Katia Soledad Sandoval
A93: 7929 | B93: 7929 | C93: Daniela Nereida Marquina Espin
A94: 7975 | B94: 7975 | C94: Maria Celeste Cantero
A95: 7991 | B95: 7991 | C95: Mariana Buscalia
A96: 8009 | B96: 8009 | C96: Paula Rocio Maydana
A97: 8011 | B97: 8011 | C97: Federico Daniel Gomez
A98: 8067 | B98: 8067 | C98: Brian Jesus Perdichizzi
A99: 8187 | B99: 8187 | C99: Tamara Ramona Torres
A100: 8205 | B100: 8205 | C100: Juliana Florencia Almada Rodriguez
A101: 8207 | B101: 8207 | C101: Maria Belen Barberis
A102: 8247 | B102: 8247 | C102: Juan Pablo D Agostino
A103: 8262 | B103: 8262 | C103: Gustavo Damian Otero
A104: 8274 | B104: 8274 | C104: Betiana Lara Gutierrez
A105: 8282 | B105: 8282 | C105: Gabriela Soledad Ferreyra
A106: 8374 | B106: 8374 | C106: Eliana Ivonne Henn Grispo
A107: 8386 | B107: 8386 | C107: Brandon Adrian Herrera
A108: 8408 | B108: 8408 | C108: Rodrigo Nicolas Torrico
A109: 8412 | B109: 8412 | C109: Reynaldo Abraham Ayoroa Becerra
A110: 8414 | B110: 8414 | C110: Renzo Ruben Rivadero
A111: 8442 | B111: 8442 | C111: Maria Jemima Contreras
A112: 8463 | B112: 8463 | C112: Leonardo Abel Solavallone
A113: 8475 | B113: 8475 | C113: Michel Alexander Villalba
A114: 8535 | B114: 8535 | C114: Emanuel Facundo Tobal
A115: 8539 | B115: 8539 | C115: Romina Beatriz Gatica
A116: 8649 | B116: 8649 | C116: Lucia Ayelen Gomez
A117: 8710 | B117: 8710 | C117: Dario Emanuel Cano
A118: 8721 | B118: 8721 | C118: Vicente Fabian Pineda
A119: 8767 | B119: 8767 | C119: Camila Agostina Garavello
A120: 8796 | B120: 8796 | C120: Eliana Laura Carabajal
A121: 8800 | B121: 8800 | C121: Juan Nicolas Correa
A122: 8823 | B122: 8823 | C122: Gimena Noemi Fernandez
A123: 8827 | B123: 8827 | C123: Alejandra Garcia Jimenez
A124: 8844 | B124: 8844 | C124: Santiago Nicolas Santucho
A125: 8855 | B125: 8855 | C125: Matilde Carolina Ruiz
A126: 8863 | B126: 8863 | C126: Maria Sol Carhue Montana Bello
A127: 8866 | B127: 8866 | C127: Mayra Florencia Rojas Oyarce
A128: 8868 | B128: 8868 | C128: Joan Franco Troila
A129: 8872 | B129: 8872 | C129: Martin Ariel Acosta
A130: 8884 | B130: 8884 | C130: Micaela Belen Picon
A131: 8898 | B131: 8898 | C131: Cecilia Savino
A132: 9096 | B132: 9096 | C132: Camila Stephanie Sandez
A133: 9141 | B133: 9141 | C133: Maria Victoria Limbatto
A134: 9150 | B134: 9150 | C134: Mauro Pedraza
A135: 9162 | B135: 9162 | C135: Santiago Albornoz
A136: 9163 | B136: 9163 | C136: Georgina Milagros Anabella Giuggia
A137: 9174 | B137: 9174 | C137: Valeria Soledad Benegas
A138: 9194 | B138: 9194 | C138: Ruben Facundo Zampedri
A139: 9216 | B139: 9216 | C139: Camila Evelin Jerez
A140: 9219 | B140: 9219 | C140: Stephanie Liliana Dominguez
A141: 9222 | B141: 9222 | C141: Diego Armando Tunque Laime
A142: 9230 | B142: 9230 | C142: Cristian Eduardo Gamarra
A143: 9243 | B143: 9243 | C143: Noelia Lucia Barainca
A144: 9244 | B144: 9244 | C144: Gabriel Hernan Blanco
A145: 9251 | B145: 9251 | C145: Juan Maria Logegaray
A146: 9258 | B146: 9258 | C146: Brian Alan Ruvira
A147: 9268 | B147: 9268 | C147: Facundo Gabriel Falconi
A148: 9269 | B148: 9269 | C148: Franco Falistoco
A149: 9272 | B149: 9272 | C149: Miguel Alejandro Melgarejo
A150: 9274 | B150: 9274 | C150: Solimar Haydee Otto
A151: 9277 | B151: 9277 | C151: Eliana Jacqueline Sandoval
A152: 9282 | B152: 9282 | C152: Monica Noelia Larracochea
A153: 9284 | B153: 9284 | C153: Fabian Jorge Moralejo
A154: 9301 | B154: 9301 | C154: Ezequiel Elias Edison Mirabal
A155: 9302 | B155: 9302 | C155: Cesar Tomas Paucara Teran
A156: 9321 | B156: 9321 | C156: Franco Joel Nola
A157: 9377 | B157: 9377 | C157: Daniela Natali Cuevas
A158: 9426 | B158: 9426 | C158: Franco Daniel Benegas Spalenza
A159: 9473 | B159: 9473 | C159: Nicolas Manuel Ardite
A160: 9501 | B160: 9501 | C160: Mayra Estefania Ledesma
A161: 9502 | B161: 9502 | C161: Marcelo Alejandro Ledezma
A162: 9531 | B162: 9531 | C162: Angel Gabriel Molino
A163: 9705 | B163: 9705 | C163: Damian Ezequiel Casal
A164: 9754 | B164: 9754 | C164: Nicolas Rodolfo Sosa Lo Presti
A165: 9788 | B165: 9788 | C165: Melanie Daniela Baraona
A166: 9792 | B166: 9792 | C166: Ariel Alexis Millacan
A167: 9808 | B167: 9808 | C167: Romina Alejandra Cordova Paez
A168: 9834 | B168: 9834 | C168: Fabiana Abigail Soazo
A169: 9840 | B169: 9840 | C169: Jonatan Dario Pires Diz
A170: 9900 | B170: 9900 | C170: Indira Nils De Lauro
A171: 10003 | B171: 10003 | C171: Agustina Ana Luz Gancia Sosa
A172: 10017 | B172: 10017 | C172: Florencia Macarena Castillo
A173: 10060 | B173: 10060 | C173: Jaquelin Corina Maciel
A174: 10112 | B174: 10112 | C174: Geraldine Selene Obregon Alvarez
A175: 10120 | B175: 10120 | C175: Lucrecia Solange Garcia
A176: 10133 | B176: 10133 | C176: Jesica Maribel Molino
A177: 10140 | B177: 10140 | C177: Ester Noemi Arguelles Bazan
A178: 10148 | B178: 10148 | C178: Camila Jakas
A179: 10177 | B179: 10177 | C179: Alejandro Ismael Herrera
A180: 10191 | B180: 10191 | C180: Micaela Ayelen Rondon
A181: 10217 | B181: 10217 | C181: Evelin Marlene Vigil
A182: 10222 | B182: 10222 | C182: Ayelen Alejandra Itati Pain
A183: 10223 | B183: 10223 | C183: Luis Enrique Gomez Villegas
A184: 10233 | B184: 10233 | C184: Lucas Agustin Zambrano
A185: 10257 | B185: 10257 | C185: Franco Insaurralde
A186: 10264 | B186: 10264 | C186: Ariana Marlene Losada
A187: 10270 | B187: 10270 | C187: Daiana Sabrina Bertolini
A188: 10279 | B188: 10279 | C188: Marcos Ezequiel Espinoza
A189: 10281 | B189: 10281 | C189: Pablo Manuel Leiva
A190: 10290 | B190: 10290 | C190: Valeria Alejandra Guerrero Mendez
A191: 10296 | B191: 10296 | C191: Lourdes Soledad Gallardo
A192: 10298 | B192: 10298 | C192: Juana Saitta Feldman
A193: 10301 | B193: 10301 | C193: Jimena Jazmin Tucci
A194: 10304 | B194: 10304 | C194: Valentina Castellon
A195: 10305 | B195: 10305 | C195: Milagros Da Silva
A196: 10307 | B196: 10307 | C196: Brian Iern
A197: 10308 | B197: 10308 | C197: Juliana Natalia Maydana
A198: 10309 | B198: 10309 | C198: Ruben Eduardo Riedel
A199: 10312 | B199: 10312 | C199: Maria Camila Droz
A200: 10314 | B200: 10314 | C200: Alexis Ariel Perez Kairuz
A201: 10342 | B201: 10342 | C201: Franco Mauro Lares
A202: 10344 | B202: 10344 | C202: Ignacio Nicolas Reyes
... 106 more rows

Sheet Detalle Diario de Cajeros
A1: Fecha | B1: Cajero | C1: Legajo | D1: Sobre diario | E1: Origen | F1: Importe | G1: Justificación | H1: Responsable de Ingresos y Valores Cierre | I1: Detalle Retiro | L1: =IFERROR(IF(K1="","",VLOOKUP(K1,Cajeros!$B$4:$C$1425,2,FALSE)),"VERIFICAR LEGAJO") -> 
A2: =IF(F2="","",'Reporte Depósitos'!$N$7) ->  | B2: =IF(F2="","",'Reporte Depósitos'!H21) ->  | C2: =IF(F2="","",'Reporte Depósitos'!$H$22) ->  | E2: =+IF(F2<>"","Cine","") ->  | F2: =IF('Reporte Depósitos'!$H$14=0,"",'Reporte Depósitos'!$H$14) ->  | H2: =+IF(F2="","",$L$1) ->  | K2: Legajo | L2: Nombre
A3: =IF(F3="","",'Reporte Depósitos'!$N$7) ->  | B3: =IF(F3="","",'Reporte Depósitos'!J21) ->  | C3: =IF(F3="","",'Reporte Depósitos'!$J$22) ->  | E3: =+IF(F3<>"","Cine","") ->  | F3: =IF('Reporte Depósitos'!$J$14=0,"",'Reporte Depósitos'!$J$14) ->  | H3: =+IF(F3="","",$L$1) ->  | K3: Responsable de Ingresos y Valores Cierre
A4: =IF(F4="","",'Reporte Depósitos'!$N$7) ->  | B4: =IF(F4="","",'Reporte Depósitos'!L21) ->  | C4: =IF(F4="","",'Reporte Depósitos'!$L$22) ->  | F4: =IF('Reporte Depósitos'!$L$14=0,"",'Reporte Depósitos'!$L$14) -> 
A5: =IF(F5="","",'Reporte Depósitos'!$N$7) ->  | B5: =IF(F5="","",'Reporte Depósitos'!N21) ->  | C5: =IF(F5="","",'Reporte Depósitos'!$N$22) ->  | F5: =IF('Reporte Depósitos'!$N$14=0,"",'Reporte Depósitos'!$N$14) -> 
A6: =IF(F6="","",'Reporte Depósitos'!$N$7) ->  | B6: =IF(F6="","",'Reporte Depósitos'!P21) ->  | C6: =IF(F6="","",'Reporte Depósitos'!$P$22) ->  | F6: =IF('Reporte Depósitos'!$P$14=0,"",'Reporte Depósitos'!$P$14) -> 
A7: =IF(F7="","",'Reporte Depósitos'!$N$7) ->  | B7: =IF(F7="","",'Reporte Depósitos'!R21) ->  | C7: =IF(F7="","",'Reporte Depósitos'!$R$22) ->  | F7: =IF('Reporte Depósitos'!$R$14=0,"",'Reporte Depósitos'!$R$14) -> 
A8: =IF(F8="","",'Reporte Depósitos'!$N$7) ->  | B8: =IF(F8="","",'Reporte Depósitos'!T21) ->  | C8: =IF(F8="","",'Reporte Depósitos'!$T$22) ->  | F8: =IF('Reporte Depósitos'!$T$14=0,"",'Reporte Depósitos'!$T$14) -> 
A9: =IF(F9="","",'Reporte Depósitos'!$N$7) ->  | B9: =IF(F9="","",'Reporte Depósitos'!V21) ->  | C9: =IF(F9="","",'Reporte Depósitos'!$V$22) ->  | F9: =IF('Reporte Depósitos'!$V$14=0,"",'Reporte Depósitos'!$V$14) -> 
A10: =IF(F10="","",'Reporte Depósitos'!$N$7) ->  | B10: =IF(F10="","",'Reporte Depósitos'!X21) ->  | C10: =IF(F10="","",'Reporte Depósitos'!$X$22) ->  | F10: =IF('Reporte Depósitos'!$X$14=0,"",'Reporte Depósitos'!$X$14) -> 
A11: =IF(F11="","",'Reporte Depósitos'!$N$7) ->  | B11: =IF(F11="","",'Reporte Depósitos'!Z21) ->  | C11: =IF(F11="","",'Reporte Depósitos'!$Z$22) ->  | F11: =IF('Reporte Depósitos'!$Z$14=0,"",'Reporte Depósitos'!$Z$14) -> 
A12: =IF(F12="","",'Reporte Depósitos'!$N$7) ->  | B12: =IF(F12="","",'Reporte Depósitos'!AB21) ->  | C12: =IF(F12="","",'Reporte Depósitos'!$AB$22) ->  | F12: =IF('Reporte Depósitos'!$AB$14=0,"",'Reporte Depósitos'!$AB$14) -> 
A13: =IF(F13="","",'Reporte Depósitos'!$N$7) ->  | B13: =IF(F13="","",'Reporte Depósitos'!AD21) ->  | C13: =IF(F13="","",'Reporte Depósitos'!$AD$22) ->  | F13: =IF('Reporte Depósitos'!$AD$14=0,"",'Reporte Depósitos'!$AD$14) -> 
A14: =IF(F14="","",'Reporte Depósitos'!$N$7) ->  | B14: =IF(F14="","",'Reporte Depósitos'!AF21) ->  | C14: =IF(F14="","",'Reporte Depósitos'!$AF$22) ->  | F14: =IF('Reporte Depósitos'!$AF$14=0,"",'Reporte Depósitos'!$AF$14) -> 
A15: =IF(F15="","",'Reporte Depósitos'!$N$7) ->  | B15: =IF(F15="","",'Reporte Depósitos'!AH21) ->  | C15: =IF(F15="","",'Reporte Depósitos'!$AH$22) ->  | F15: =IF('Reporte Depósitos'!$AH$14=0,"",'Reporte Depósitos'!$AH$14) -> 
A16: =IF(F16="","",'Reporte Depósitos'!$N$7) ->  | B16: =IF(F16="","",'Reporte Depósitos'!AJ21) ->  | C16: =IF(F16="","",'Reporte Depósitos'!$AJ$22) ->  | F16: =IF('Reporte Depósitos'!$AJ$14=0,"",'Reporte Depósitos'!$AJ$14) -> 
A17: =IF(F17="","",'Reporte Depósitos'!$N$7) ->  | B17: =IF(F17="","",'Reporte Depósitos'!AL21) ->  | C17: =IF(F17="","",'Reporte Depósitos'!$AL$22) ->  | F17: =IF('Reporte Depósitos'!$AL$14=0,"",'Reporte Depósitos'!$AL$14) -> 
A18: =IF(F18="","",'Reporte Depósitos'!$N$7) ->  | B18: =IF(F18="","",'Reporte Depósitos'!AN21) ->  | C18: =IF(F18="","",'Reporte Depósitos'!$AN$22) ->  | F18: =IF('Reporte Depósitos'!$AN$14=0,"",'Reporte Depósitos'!$AN$14) -> 
A19: =IF(F19="","",'Reporte Depósitos'!$N$7) ->  | B19: =IF(F19="","",'Reporte Depósitos'!AP21) ->  | C19: =IF(F19="","",'Reporte Depósitos'!$AP$22) ->  | F19: =IF('Reporte Depósitos'!$AP$14=0,"",'Reporte Depósitos'!$AP$14) -> 
A20: =IF(F20="","",'Reporte Depósitos'!$N$7) ->  | B20: =IF(F20="","",'Reporte Depósitos'!AR21) ->  | C20: =IF(F20="","",'Reporte Depósitos'!$AR$22) ->  | F20: =IF('Reporte Depósitos'!$AR$14=0,"",'Reporte Depósitos'!$AR$14) -> 
A22: =IF(F22="","",'Reporte Depósitos'!$N$7) ->  | B22: =IF(F22="","",'Reporte Depósitos'!AV21) ->  | C22: =IF(F22="","",'Reporte Depósitos'!$AV$22) ->  | F22: =IF('Reporte Depósitos'!$AV$14=0,"",'Reporte Depósitos'!$AV$14) -> 
A23: =IF(F23="","",'Reporte Depósitos'!$N$7) ->  | B23: =IF(F23="","",'Reporte Depósitos'!H21) ->  | C23: =IF(F23="","",'Reporte Depósitos'!$H$22) ->  | E23: =+IF(F23<>"","Retiro","") ->  | F23: =IF('Reporte Depósitos'!$H$12=0,"",'Reporte Depósitos'!$H$12) ->  | H23: =+IF(F23="","",$L$1) -> 
A24: =IF(F24="","",'Reporte Depósitos'!$N$7) ->  | B24: =IF(F24="","",'Reporte Depósitos'!J21) ->  | C24: =IF(F24="","",'Reporte Depósitos'!$J$22) ->  | E24: =+IF(F24<>"","Retiro","") ->  | F24: =IF('Reporte Depósitos'!$J$12=0,"",'Reporte Depósitos'!$J$12) -> 
A25: =IF(F25="","",'Reporte Depósitos'!$N$7) ->  | B25: =IF(F25="","",'Reporte Depósitos'!L21) ->  | C25: =IF(F25="","",'Reporte Depósitos'!$L$22) ->  | F25: =IF('Reporte Depósitos'!$L$12=0,"",'Reporte Depósitos'!$L$12) -> 
A26: =IF(F26="","",'Reporte Depósitos'!$N$7) ->  | B26: =IF(F26="","",'Reporte Depósitos'!N21) ->  | C26: =IF(F26="","",'Reporte Depósitos'!$N$22) ->  | F26: =IF('Reporte Depósitos'!$N$12=0,"",'Reporte Depósitos'!$N$12) -> 
A27: =IF(F27="","",'Reporte Depósitos'!$N$7) ->  | B27: =IF(F27="","",'Reporte Depósitos'!P21) ->  | C27: =IF(F27="","",'Reporte Depósitos'!$P$22) ->  | F27: =IF('Reporte Depósitos'!$P$12=0,"",'Reporte Depósitos'!$P$12) -> 
A28: =IF(F28="","",'Reporte Depósitos'!$N$7) ->  | B28: =IF(F28="","",'Reporte Depósitos'!R21) ->  | C28: =IF(F28="","",'Reporte Depósitos'!$R$22) ->  | F28: =IF('Reporte Depósitos'!$R$12=0,"",'Reporte Depósitos'!$R$12) -> 
A29: =IF(F29="","",'Reporte Depósitos'!$N$7) ->  | B29: =IF(F29="","",'Reporte Depósitos'!T21) ->  | C29: =IF(F29="","",'Reporte Depósitos'!$T$22) ->  | F29: =IF('Reporte Depósitos'!$T$12=0,"",'Reporte Depósitos'!$T$12) -> 
A30: =IF(F30="","",'Reporte Depósitos'!$N$7) ->  | B30: =IF(F30="","",'Reporte Depósitos'!V21) ->  | C30: =IF(F30="","",'Reporte Depósitos'!$V$22) ->  | F30: =IF('Reporte Depósitos'!$V$12=0,"",'Reporte Depósitos'!$V$12) -> 
A31: =IF(F31="","",'Reporte Depósitos'!$N$7) ->  | B31: =IF(F31="","",'Reporte Depósitos'!X21) ->  | C31: =IF(F31="","",'Reporte Depósitos'!$X$22) ->  | F31: =IF('Reporte Depósitos'!$X$12=0,"",'Reporte Depósitos'!$X$12) -> 
A32: =IF(F32="","",'Reporte Depósitos'!$N$7) ->  | B32: =IF(F32="","",'Reporte Depósitos'!Z21) ->  | C32: =IF(F32="","",'Reporte Depósitos'!$Z$22) ->  | F32: =IF('Reporte Depósitos'!$Z$12=0,"",'Reporte Depósitos'!$Z$12) -> 
A33: =IF(F33="","",'Reporte Depósitos'!$N$7) ->  | B33: =IF(F33="","",'Reporte Depósitos'!AB21) ->  | C33: =IF(F33="","",'Reporte Depósitos'!$AB$22) ->  | F33: =IF('Reporte Depósitos'!$AB$12=0,"",'Reporte Depósitos'!$AB$12) -> 
A34: =IF(F34="","",'Reporte Depósitos'!$N$7) ->  | B34: =IF(F34="","",'Reporte Depósitos'!AD21) ->  | C34: =IF(F34="","",'Reporte Depósitos'!$AD$22) ->  | F34: =IF('Reporte Depósitos'!$AD$12=0,"",'Reporte Depósitos'!$AD$12) -> 
A35: =IF(F35="","",'Reporte Depósitos'!$N$7) ->  | B35: =IF(F35="","",'Reporte Depósitos'!AF21) ->  | C35: =IF(F35="","",'Reporte Depósitos'!$AF$22) ->  | F35: =IF('Reporte Depósitos'!$AF$12=0,"",'Reporte Depósitos'!$AF$12) -> 
A36: =IF(F36="","",'Reporte Depósitos'!$N$7) ->  | B36: =IF(F36="","",'Reporte Depósitos'!AH21) ->  | C36: =IF(F36="","",'Reporte Depósitos'!$AH$22) ->  | F36: =IF('Reporte Depósitos'!$AH$12=0,"",'Reporte Depósitos'!$AH$12) -> 
A37: =IF(F37="","",'Reporte Depósitos'!$N$7) ->  | B37: =IF(F37="","",'Reporte Depósitos'!AJ21) ->  | C37: =IF(F37="","",'Reporte Depósitos'!$AJ$22) ->  | F37: =IF('Reporte Depósitos'!$AJ$12=0,"",'Reporte Depósitos'!$AJ$12) -> 
A38: =IF(F38="","",'Reporte Depósitos'!$N$7) ->  | B38: =IF(F38="","",'Reporte Depósitos'!AL21) ->  | C38: =IF(F38="","",'Reporte Depósitos'!$AL$22) ->  | F38: =IF('Reporte Depósitos'!$AL$12=0,"",'Reporte Depósitos'!$AL$12) -> 
A39: =IF(F39="","",'Reporte Depósitos'!$N$7) ->  | B39: =IF(F39="","",'Reporte Depósitos'!AN21) ->  | C39: =IF(F39="","",'Reporte Depósitos'!$AN$22) ->  | F39: =IF('Reporte Depósitos'!$AN$12=0,"",'Reporte Depósitos'!$AN$12) -> 
A40: =IF(F40="","",'Reporte Depósitos'!$N$7) ->  | B40: =IF(F40="","",'Reporte Depósitos'!AP21) ->  | C40: =IF(F40="","",'Reporte Depósitos'!$AP$22) ->  | F40: =IF('Reporte Depósitos'!$AP$12=0,"",'Reporte Depósitos'!$AP$12) -> 
A41: =IF(F41="","",'Reporte Depósitos'!$N$7) ->  | B41: =IF(F41="","",'Reporte Depósitos'!AR21) ->  | C41: =IF(F41="","",'Reporte Depósitos'!$AR$22) ->  | D41: ='Reporte Depósitos'!$AR$18 ->  | E41: =+IF(F41<>"","Cine","") ->  | F41: =IF('Reporte Depósitos'!$AR$16=0,"",'Reporte Depósitos'!$AR$16) -> 
A42: =IF(F42="","",'Reporte Depósitos'!$N$7) ->  | B42: =IF(F42="","",'Reporte Depósitos'!AV21) ->  | C42: =IF(F42="","",'Reporte Depósitos'!$AV$22) ->  | D42: ='Reporte Depósitos'!$AV$18 ->  | E42: =+IF(F42<>"","Cine","") ->  | F42: =IF('Reporte Depósitos'!$AV$16=0,"",'Reporte Depósitos'!$AV$16) -> 

Sheet Base de Datos Despachos Brinks
A1: Fecha | B1: Cajero | C1: Legajo | D1: Sobre diario | E1: Origen | F1: Importe | G1: Justificación | H1: Responsable de Ingresos y Valores | I1: Detalle Retiro
A2: 2019-12-26 | B2: Cecilia Savino | C2: 8898 | D2: 959615 | E2: Cine | F2: 42152 | H2: Cecilia Savino
A3: 2019-12-26 | B3: Carla Noemi Lopez | C3: 2814 | D3: 959606 | E3: Cine | F3: 40389 | H3: Cecilia Savino
A4: 2019-12-26 | B4: Cecilia Savino | C4: 8898 | D4: 959613 | E4: Cine | F4: 33427.5 | H4: Cecilia Savino
A5: 2019-12-26 | B5: Cecilia Savino | C5: 8898 | D5: 959612 | E5: Cine | F5: 15709 | H5: Cecilia Savino
A6: 2019-12-26 | B6: Cecilia Savino | C6: 8898 | D6: 959608 | E6: Cine | F6: 13060 | H6: Cecilia Savino
A7: 2019-12-26 | B7: Cecilia Savino | C7: 8898 | D7: 959616 | E7: Cine | F7: 322 | H7: Cecilia Savino
A8: 2019-12-26 | B8: Carla Noemi Lopez | C8: 2814 | E8: Retiro | F8: 5000 | H8: Cecilia Savino
A9: 2019-12-27 | B9: Laura Giselle Enriquez | C9: 6885 | D9: 959605 | E9: Cine | F9: 59967 | H9: Geraldine Selene Obregon Alvarez
A10: 2019-12-27 | B10: Laura Giselle Enriquez | C10: 6885 | D10: 959610 | E10: Cine | F10: 45350 | H10: Geraldine Selene Obregon Alvarez
A11: 2019-12-27 | B11: Laura Giselle Enriquez | C11: 6885 | D11: 959603 | E11: Cine | F11: 34100.5 | H11: Geraldine Selene Obregon Alvarez
A12: 2019-12-27 | B12: Geraldine Selene Obregon Alvarez | C12: 10112 | D12: 959611 | E12: Cine | F12: 21882 | H12: Geraldine Selene Obregon Alvarez
A13: 2019-12-27 | B13: Nahuel Alejandro Miño | C13: 7872 | D13: 959227 | E13: Cine | F13: 5890 | H13: Geraldine Selene Obregon Alvarez
A14: 2019-12-27 | B14: Geraldine Selene Obregon Alvarez | C14: 10112 | D14: 959604 | E14: Cine | F14: 13.5 | H14: Geraldine Selene Obregon Alvarez
D1743: 891991
D3850: 981240
D6286: 25
D6287: 48
D6288: 105
I6294: Viáticos de GR

Sheet Detalle Despachos Brinks
A1: Fecha | B1: Entrega | C1: N° Bolsines | D1: Importe | E1: Fecha Brinks | F1: Bolsa | G1: Centenas Cambio
A2: 2019-12-27 | B2: Parcial | C2: 0 | D2: 0
A3: 2019-12-27 | B3: Final | C3: 6 | D3: 167203 | E3: 2019-12-30

Sheet Folios (hidden)
B3: Parcial | D3: Folio | F3: Importe
B5: 1 | D5: 881492 | F5: ='Reporte Depósitos'!H14 -> 0
B7: 2 | D7: ='Reporte Depósitos'!J16 ->  | F7: ='Reporte Depósitos'!J14 -> 0
B9: 3 | D9: ='Reporte Depósitos'!L16 ->  | F9: ='Reporte Depósitos'!L14 -> 0
B11: 4 | D11: ='Reporte Depósitos'!N16 ->  | F11: ='Reporte Depósitos'!N14 -> 0
B13: 5 | D13: ='Reporte Depósitos'!P16 ->  | F13: ='Reporte Depósitos'!P14 -> 0
B15: 6 | D15: ='Reporte Depósitos'!X16 ->  | F15: ='Reporte Depósitos'!X14 -> 0
F17: =F5+F7+F9+F11+F13+F15 -> 0 | H17: Importe total del depósito

Sheet Reporte Bolsas Brinks
D1: Valores
A2: Fecha Brinks | B2: Bolsa | C2: Fecha | D2: Suma de N° Bolsines | E2: Suma de Importe
A3: (blank) | B3: (blank) | C3: (blank)
C4: 2019-12-27 | D4: 0 | E4: 0
B5: (blank) Total | D5: 0 | E5: 0
A6: 2019-12-30 | B6: (blank) | C6: 2019-12-27 | D6: 6 | E6: 167203
B7: (blank) Total | D7: 6 | E7: 167203

Sheet Firmas y Control documental
A2: Revisión 03: 29 de Diciembre de 2.021.
A3: Cancela y sustituye: Formulario de Recuperación de Fondos y Retiros. Formulario de Depósitos en Compusafe AR-TRA-FT-DRO-02, publicado el 11 de diciembre de 2.020.
A5: SUS.Scanton US
A6: Cláusula de Confidencialidad
A7: Este documento y sus anexos contienen información estratégica de negocio, secretos comerciales y en general el know-how de KTR, LLC (“KTR”) y sus empresas filiales, derivados de experiencias comerciales y programas de investigación y desarrollo que han sido compilados para uso exclusivo de empresas filiales con el objetivo de asegurar e incrementar la rentabilidad y beneficio de KTR a largo plazo. El contenido de este documento y sus anexos es estrictamente confidencial y para el uso exclusivo de sus destinatarios.
A8: En este documento y sus anexos tendrá la consideración de “Información Confidencial” toda documentación e información (de tipo económico, financiero, técnico, comercial, estratégico o de otro tipo) proporcionada mediante cualquier forma o medio (oral, escrita o en cualquier soporte) y en cualquier momento, ya sea con anterioridad o posterioridad a la fecha de este documento o sus anexos, que no esté disponible públicamente relativa a KTR o a cualquier sociedad filial y/o persona relacionada con las mismas, incluyendo, sin limitación, información científica, técnica o arquitectónica; información relativa al negocio actual o futuro, experiencia comercial y planes de comercialización, incluyendo, pero no limitada a, información financiera, términos contractuales o información y datos de clientes, diseños, dibujos, programas de computadora y software; costos e información de precios e identificación de personal u otros recursos para su posible uso comercial. En particular, será Información Confidencial toda documentación e información (i) marcada como tal; (ii) identificada por KTR o su personal, ya sea verbal o escrito, como Información Confidencial; (iii) que tenga valor comercial); (iv) que no sea conocida a nivel general en el mercado o la industria; o (v) que por su naturaleza o por las circunstancias en que se produzca la revelación, deba de buena fe estimarse como tal.
A9: Los destinatarios de este documento y sus anexos se obligan a tratar en todo momento la Información Confidencial como secreta y confidencial, por tanto, no comunicarla ni revelarla directa o indirectamente, (verbal o escrita) a persona física o jurídica ajena a KTR sin que medie previa aprobación por escrito de KTR. La revelación, distribución, transmisión electrónica o copia de la Información Confidencial queda estrictamente prohibida. Los destinatarios de este documento y sus anexos acuerdan no duplicar, distribuir o revelar su contenido a través de ningún medio.
A12: AUTORIZACIONES Y FIRMAS
A14: NOMBRE | C14: PUESTO | D14: RÚBRICA
A15: Elaboró | B15: Rafael Moros | C15: Consultor Jr. de Procesos Scanton
A16: V.° B.° | B16: Inés Trementino | C16: Gerente de Operaciones Cinépolis Argentna
A17: V.° B.° | B17: César Principi | C17: Gerente de Finanzas Cinépolis Argentna
A18: Autorizó | B18: Iván Hurtado Santoyo | C18: Gerente General Scanton
A20: TABLA DE CAMBIOS
A22: Revisión | B22: Descripción de cambios | D22: Fecha
A23: 0 | B23: Documento Original | D23: 2019-08-16
A25: 1 | B25: Cambio de Marca de Village Cines a Cinépolis | D25: 2019-12-26
A27: 2 | B27: 1. Actualización de formato por Plantilla formato Excel INT 2019 de Scanton 2. Inclusión de Cláusula de Confidencialidad KTR, LLC (“KTR”) y Control de Cambios. 3. Ajustes en la carga de información de Caja Antipesca por Compusafe, con un máximo de dos bolsines con cambio al finalizar turnos. El resto del dinero en efectivo debe estar reportado como depositado en compusafe. 4. Unico nombre de documento con dos formularios principales | D27: 2020-12-11
A36: 3 | B36: 1. Eliminación de campos de firmas por implementación digital del documento. 2. Eliminación de campos de entrega final en el Formulario de Depósitos en Compusafe, ya que eran campos para ser llenados una vez impreso el reporte. 3. Sustitución de firma del gerente por legajo y nombre del gerente, al cual se le debe enviar el reporte una vez culminado, acompañado del reporte de Daily Cash Up vía correo eletrónico, el cual tampoco requerirá ser impreso. | D36: 2021-12-29
